[Event "Titled Tuesday Blitz July 25 Early 2023"]
[White "Trifan, Andrei Ioan"]
[Black "Balla, Tamas-Kristof"]
[WhiteFideId "12967068"]
[BlackFideId "1208497"]
[WhiteElo "2571"]
[BlackElo "2442"]
[Result "1-0"]
[Round "11"]
[TimeControl "180+2"]
[Date "2023.07.25"]
[WhiteClock "0:01:41"]
[BlackClock "0:00:32"]
[Board "70"]

1. Nf3 {[%clk 0:02:59]}  c5 {[%clk 0:03:00]} 2. e3 {[%clk 0:02:55]}  d5 {[%clk 0:02:54]} 3. b3 {[%clk 0:02:55]}  Nf6 {[%clk 0:02:53]} 4. Bb2 {[%clk 0:02:52]}  a6 {[%clk 0:02:54]} 5. Be2 {[%clk 0:02:51]}  Nc6 {[%clk 0:02:50]} 6. O-O {[%clk 0:02:52]}  Bg4 {[%clk 0:02:51]} 7. d4 {[%clk 0:02:52]}  e6 {[%clk 0:02:51]} 8. Nbd2 {[%clk 0:02:50]}  Bd6 {[%clk 0:02:50]} 9. c4 {[%clk 0:02:50]}  cxd4 {[%clk 0:02:47]} 10. Nxd4 {[%clk 0:02:50]}  Bxe2 {[%clk 0:02:46]} 11. Qxe2 {[%clk 0:02:51]}  Nxd4 {[%clk 0:02:44]} 12. Bxd4 {[%clk 0:02:52]}  O-O {[%clk 0:02:39]} 13. Rfd1 {[%clk 0:02:50]}  Qe7 {[%clk 0:02:34]} 14. e4 {[%clk 0:02:46]}  Nxe4 {[%clk 0:02:23]} 15. Nxe4 {[%clk 0:02:41]}  dxe4 {[%clk 0:02:19]} 16. Qxe4 {[%clk 0:02:41]}  e5 {[%clk 0:01:55]} 17. Bb2 {[%clk 0:02:32]}  Rfe8 {[%clk 0:01:46]} 18. Rd5 {[%clk 0:02:29]}  Rad8 {[%clk 0:01:40]} 19. Rad1 {[%clk 0:02:27]}  Bb8 {[%clk 0:01:24]} 20. h3 {[%clk 0:02:24]}  h6 {[%clk 0:01:20]} 21. Rxd8 {[%clk 0:02:05]}  Rxd8 {[%clk 0:01:20]} 22. Rxd8+ {[%clk 0:02:06]}  Qxd8 {[%clk 0:01:20]} 23. Qxb7 {[%clk 0:02:03]}  Qd1+ {[%clk 0:01:15]} 24. Kh2 {[%clk 0:02:03]}  Bd6 {[%clk 0:01:13]} 25. Qa8+ {[%clk 0:01:54]}  Kh7 {[%clk 0:01:11]} 26. Qe4+ {[%clk 0:01:53]}  Kg8 {[%clk 0:00:50]} 27. Bxe5 {[%clk 0:01:51]}  Bf8 {[%clk 0:00:38]} 28. Bg3 {[%clk 0:01:44]}  Qd2 {[%clk 0:00:35]} 29. Qa8 {[%clk 0:01:43]}  Qa5 {[%clk 0:00:32]} 30. Bd6 {[%clk 0:01:41]} 1-0


[Site "https://www.chess.com"]

[Event "Titled Tuesday Blitz July 25 Early 2023"]
[White "Yurovskykh, Oleksandr"]
[Black "Iljin, Timofey"]
[WhiteFideId "14134020"]
[BlackFideId "14110180"]
[WhiteElo "2561"]
[BlackElo "2437"]
[Result "1-0"]
[Round "11"]
[TimeControl "180+2"]
[Date "2023.07.25"]
[WhiteClock "0:00:08"]
[BlackClock "0:00:01"]
[Board "71"]

1. c4 {[%clk 0:02:53]}  f5 {[%clk 0:02:59]} 2. Nc3 {[%clk 0:02:52]}  Nf6 {[%clk 0:03:00]} 3. g3 {[%clk 0:02:52]}  g6 {[%clk 0:03:01]} 4. Bg2 {[%clk 0:02:52]}  Bg7 {[%clk 0:03:02]} 5. d3 {[%clk 0:02:50]}  O-O {[%clk 0:03:03]} 6. e4 {[%clk 0:02:48]}  d6 {[%clk 0:03:03]} 7. Nge2 {[%clk 0:02:44]}  e5 {[%clk 0:03:04]} 8. O-O {[%clk 0:02:42]}  Nc6 {[%clk 0:03:04]} 9. h3 {[%clk 0:02:38]}  fxe4 {[%clk 0:03:03]} 10. dxe4 {[%clk 0:02:35]}  Be6 {[%clk 0:03:03]} 11. Nd5 {[%clk 0:02:34]}  Qd7 {[%clk 0:03:02]} 12. Kh2 {[%clk 0:02:33]}  Nd4 {[%clk 0:02:59]} 13. Be3 {[%clk 0:02:29]}  Nxe2 {[%clk 0:02:29]} 14. Qxe2 {[%clk 0:02:29]}  c6 {[%clk 0:02:29]} 15. Nc3 {[%clk 0:02:20]}  Qf7 {[%clk 0:02:23]} 16. b3 {[%clk 0:02:14]}  Rad8 {[%clk 0:02:18]} 17. Rad1 {[%clk 0:02:07]}  Rd7 {[%clk 0:02:12]} 18. Rd3 {[%clk 0:01:49]}  b6 {[%clk 0:01:55]} 19. Rfd1 {[%clk 0:01:47]}  Rfd8 {[%clk 0:01:54]} 20. R1d2 {[%clk 0:01:21]}  d5 {[%clk 0:01:25]} 21. cxd5 {[%clk 0:01:19]}  cxd5 {[%clk 0:01:26]} 22. exd5 {[%clk 0:01:17]}  Nxd5 {[%clk 0:01:26]} 23. Nxd5 {[%clk 0:01:17]}  Bxd5 {[%clk 0:01:27]} 24. Rxd5 {[%clk 0:01:05]}  Rxd5 {[%clk 0:01:28]} 25. Bxd5 {[%clk 0:01:03]}  Rxd5 {[%clk 0:01:28]} 26. Rxd5 {[%clk 0:01:03]}  Qxd5 {[%clk 0:01:29]} 27. Qc2 {[%clk 0:01:04]}  Qd7 {[%clk 0:01:15]} 28. Qc4+ {[%clk 0:01:02]}  Kh8 {[%clk 0:01:13]} 29. h4 {[%clk 0:01:01]}  h5 {[%clk 0:01:11]} 30. Qe4 {[%clk 0:01:00]}  Kh7 {[%clk 0:01:11]} 31. a4 {[%clk 0:00:58]}  Qe6 {[%clk 0:00:56]} 32. b4 {[%clk 0:00:51]}  Qb3 {[%clk 0:00:55]} 33. a5 {[%clk 0:00:44]}  bxa5 {[%clk 0:00:40]} 34. bxa5 {[%clk 0:00:45]}  a6 {[%clk 0:00:41]} 35. Qc6 {[%clk 0:00:29]}  Qd3 {[%clk 0:00:38]} 36. Qb7 {[%clk 0:00:17]}  Qe2 {[%clk 0:00:20]} 37. Kg2 {[%clk 0:00:16]}  Qc4 {[%clk 0:00:16]} 38. Bg5 {[%clk 0:00:16]}  Kg8 {[%clk 0:00:11]} 39. Qe7 {[%clk 0:00:11]}  Qf7 {[%clk 0:00:09]} 40. Qd6 {[%clk 0:00:10]}  Qb7+ {[%clk 0:00:08]} 41. Kh2 {[%clk 0:00:09]}  Qb2 {[%clk 0:00:07]} 42. Be3 {[%clk 0:00:09]}  Qb5 {[%clk 0:00:06]} 43. Qxg6 {[%clk 0:00:09]}  Qxa5 {[%clk 0:00:06]} 44. Qxh5 {[%clk 0:00:09]}  Qd5 {[%clk 0:00:06]} 45. Qe8+ {[%clk 0:00:09]}  Kh7 {[%clk 0:00:05]} 46. Qe7 {[%clk 0:00:07]}  a5 {[%clk 0:00:04]} 47. Qa7 {[%clk 0:00:07]}  Qb5 {[%clk 0:00:03]} 48. h5 {[%clk 0:00:07]}  Kg8 {[%clk 0:00:02]} 49. h6 {[%clk 0:00:07]}  Bf8 {[%clk 0:00:02]} 50. h7+ {[%clk 0:00:08]}  Kh8 {[%clk 0:00:02]} 51. Qf7 {[%clk 0:00:08]}  Qb8 {[%clk 0:00:01]} 52. Qg8# {[%clk 0:00:08]} 1-0


[Site "https://www.chess.com"]

[Event "Titled Tuesday Blitz July 25 Early 2023"]
[White "Jaskolka, Tomasz"]
[Black "Lopez Del Alamo, Antonio"]
[WhiteFideId "1170791"]
[BlackFideId "2227339"]
[WhiteElo "2536"]
[BlackElo "2366"]
[Result "1-0"]
[Round "11"]
[TimeControl "180+2"]
[Date "2023.07.25"]
[WhiteClock "0:00:11"]
[BlackClock "0:00:00"]
[Board "73"]

1. e4 {[%clk 0:03:00]}  c5 {[%clk 0:02:58]} 2. Nf3 {[%clk 0:03:01]}  e6 {[%clk 0:02:58]} 3. b4 {[%clk 0:02:55]}  cxb4 {[%clk 0:02:54]} 4. d4 {[%clk 0:02:55]}  d5 {[%clk 0:02:49]} 5. e5 {[%clk 0:02:55]}  Nc6 {[%clk 0:02:48]} 6. a3 {[%clk 0:02:54]}  Qb6 {[%clk 0:02:31]} 7. axb4 {[%clk 0:02:50]}  a6 {[%clk 0:02:25]} 8. b5 {[%clk 0:02:43]}  Na5 {[%clk 0:02:18]} 9. bxa6 {[%clk 0:02:42]}  bxa6 {[%clk 0:02:13]} 10. Bd3 {[%clk 0:02:34]}  Nc4 {[%clk 0:01:59]} 11. O-O {[%clk 0:02:32]}  Bb7 {[%clk 0:01:57]} 12. Nc3 {[%clk 0:02:25]}  Nh6 {[%clk 0:01:51]} 13. Rb1 {[%clk 0:02:21]}  Qc6 {[%clk 0:01:47]} 14. Nd2 {[%clk 0:02:08]}  Nxd2 {[%clk 0:01:23]} 15. Bxd2 {[%clk 0:02:06]}  Nf5 {[%clk 0:01:20]} 16. Ne2 {[%clk 0:01:40]}  Be7 {[%clk 0:01:14]} 17. c3 {[%clk 0:01:40]}  O-O {[%clk 0:01:07]} 18. Qc2 {[%clk 0:01:37]}  g6 {[%clk 0:01:04]} 19. g4 {[%clk 0:01:22]}  Nh4 {[%clk 0:01:02]} 20. f4 {[%clk 0:01:22]}  Rfc8 {[%clk 0:00:48]} 21. f5 {[%clk 0:01:16]}  a5 {[%clk 0:00:45]} 22. f6 {[%clk 0:01:15]}  Bf8 {[%clk 0:00:43]} 23. Bg5 {[%clk 0:01:14]}  Ba6 {[%clk 0:00:29]} 24. Bxh4 {[%clk 0:01:10]}  a4 {[%clk 0:00:25]} 25. Ra1 {[%clk 0:00:59]}  a3 {[%clk 0:00:22]} 26. Bxa6 {[%clk 0:00:55]}  Qxa6 {[%clk 0:00:19]} 27. Ra2 {[%clk 0:00:55]}  Rab8 {[%clk 0:00:15]} 28. Rfa1 {[%clk 0:00:54]}  Qc4 {[%clk 0:00:15]} 29. Be1 {[%clk 0:00:48]}  Rb3 {[%clk 0:00:15]} 30. Nc1 {[%clk 0:00:43]}  Rb7 {[%clk 0:00:13]} 31. Qe2 {[%clk 0:00:31]}  Qc6 {[%clk 0:00:13]} 32. Nd3 {[%clk 0:00:27]}  Rcb8 {[%clk 0:00:12]} 33. Nb4 {[%clk 0:00:27]}  Bxb4 {[%clk 0:00:12]} 34. cxb4 {[%clk 0:00:27]}  Ra7 {[%clk 0:00:07]} 35. Rxa3 {[%clk 0:00:25]}  Rxa3 {[%clk 0:00:06]} 36. Rxa3 {[%clk 0:00:26]}  Qc1 {[%clk 0:00:05]} 37. Rc3 {[%clk 0:00:21]}  Qa1 {[%clk 0:00:04]} 38. Qc2 {[%clk 0:00:19]}  h6 {[%clk 0:00:02]} 39. Kf2 {[%clk 0:00:18]}  Kh7 {[%clk 0:00:02]} 40. h4 {[%clk 0:00:18]}  Ra8 {[%clk 0:00:03]} 41. Qd2 {[%clk 0:00:15]}  Ra2 {[%clk 0:00:03]} 42. Rc2 {[%clk 0:00:15]}  Rxc2 {[%clk 0:00:03]} 43. Qxc2 {[%clk 0:00:16]}  Qxd4+ {[%clk 0:00:04]} 44. Kf3 {[%clk 0:00:15]}  Qxe5 {[%clk 0:00:03]} 45. Qc3 {[%clk 0:00:12]}  Qe4+ {[%clk 0:00:03]} 46. Kf2 {[%clk 0:00:12]}  d4 {[%clk 0:00:00]} 47. Qf3 {[%clk 0:00:11]} 1-0


[Site "https://www.chess.com"]

[Event "Titled Tuesday Blitz July 25 Early 2023"]
[White "Buscar, Michael"]
[Black "SmirnovAlexandrA"]
[WhiteFideId "2603616"]
[WhiteElo "2370"]
[BlackElo "2514"]
[Result "0-1"]
[Round "11"]
[TimeControl "180+2"]
[Date "2023.07.25"]
[WhiteClock "0:00:00"]
[BlackClock "0:00:29"]
[Board "74"]

1. d4 {[%clk 0:02:19]}  c5 {[%clk 0:02:55]} 2. e3 {[%clk 0:02:18]}  cxd4 {[%clk 0:02:54]} 3. exd4 {[%clk 0:02:18]}  Nf6 {[%clk 0:02:55]} 4. Nf3 {[%clk 0:02:16]}  g6 {[%clk 0:02:55]} 5. Bd3 {[%clk 0:02:08]}  Bg7 {[%clk 0:02:55]} 6. O-O {[%clk 0:02:09]}  d5 {[%clk 0:02:55]} 7. c3 {[%clk 0:02:09]}  O-O {[%clk 0:02:55]} 8. Re1 {[%clk 0:02:09]}  Nc6 {[%clk 0:02:56]} 9. Nbd2 {[%clk 0:02:09]}  Bf5 {[%clk 0:02:56]} 10. Nf1 {[%clk 0:02:09]}  Qc7 {[%clk 0:02:50]} 11. Ne5 {[%clk 0:02:08]}  Bxd3 {[%clk 0:02:42]} 12. Nxd3 {[%clk 0:02:07]}  Ne4 {[%clk 0:02:37]} 13. Bf4 {[%clk 0:02:07]}  Qb6 {[%clk 0:02:34]} 14. Ng3 {[%clk 0:02:06]}  Nxg3 {[%clk 0:02:31]} 15. hxg3 {[%clk 0:02:03]}  e6 {[%clk 0:02:31]} 16. Bd6 {[%clk 0:02:02]}  Rfe8 {[%clk 0:02:26]} 17. Bc5 {[%clk 0:01:58]}  Qc7 {[%clk 0:02:26]} 18. Qf3 {[%clk 0:01:55]}  b6 {[%clk 0:02:25]} 19. Ba3 {[%clk 0:01:54]}  a5 {[%clk 0:02:20]} 20. g4 {[%clk 0:01:48]}  Rad8 {[%clk 0:02:14]} 21. g3 {[%clk 0:01:47]}  e5 {[%clk 0:02:14]} 22. dxe5 {[%clk 0:01:44]}  Nxe5 {[%clk 0:02:15]} 23. Nxe5 {[%clk 0:01:44]}  Rxe5 {[%clk 0:02:14]} 24. Rxe5 {[%clk 0:01:41]}  Qxe5 {[%clk 0:02:14]} 25. Rd1 {[%clk 0:01:41]}  h6 {[%clk 0:01:56]} 26. Kg2 {[%clk 0:01:36]}  d4 {[%clk 0:01:51]} 27. Qf4 {[%clk 0:01:29]}  Qxf4 {[%clk 0:01:46]} 28. gxf4 {[%clk 0:01:29]}  f5 {[%clk 0:01:35]} 29. g5 {[%clk 0:01:18]}  h5 {[%clk 0:01:29]} 30. Kf3 {[%clk 0:00:45]}  Kf7 {[%clk 0:01:27]} 31. b3 {[%clk 0:00:39]}  Ke6 {[%clk 0:01:10]} 32. Bb2 {[%clk 0:00:36]}  dxc3 {[%clk 0:00:55]} 33. Rxd8 {[%clk 0:00:35]}  cxb2 {[%clk 0:00:56]} 34. Rd1 {[%clk 0:00:36]}  b5 {[%clk 0:00:47]} 35. Ke3 {[%clk 0:00:33]}  a4 {[%clk 0:00:47]} 36. bxa4 {[%clk 0:00:28]}  bxa4 {[%clk 0:00:48]} 37. a3 {[%clk 0:00:28]}  Bf8 {[%clk 0:00:45]} 38. Kd3 {[%clk 0:00:16]}  Bxa3 {[%clk 0:00:44]} 39. Kc2 {[%clk 0:00:17]}  Bc5 {[%clk 0:00:33]} 40. Kxb2 {[%clk 0:00:16]}  Bxf2 {[%clk 0:00:33]} 41. Ka3 {[%clk 0:00:15]}  h4 {[%clk 0:00:33]} 42. Rd3 {[%clk 0:00:13]}  Bg3 {[%clk 0:00:31]} 43. Rd4 {[%clk 0:00:08]}  h3 {[%clk 0:00:29]} 44. Rxa4 {[%clk 0:00:00]}  h2 {[%clk 0:00:29]} 0-1


[Site "https://www.chess.com"]

[Event "Titled Tuesday Blitz July 25 Early 2023"]
[White "Oro, Faustino"]
[Black "Molenda, Marcin"]
[WhiteFideId "20000197"]
[BlackFideId "1173065"]
[WhiteElo "2808"]
[BlackElo "2461"]
[Result "0-1"]
[Round "11"]
[TimeControl "180+2"]
[Date "2023.07.25"]
[WhiteClock "0:00:02"]
[BlackClock "0:00:29"]
[Board "76"]

1. Nf3 {[%clk 0:03:00]}  Nf6 {[%clk 0:02:58]} 2. d4 {[%clk 0:02:59]}  g6 {[%clk 0:02:58]} 3. g3 {[%clk 0:02:58]}  Bg7 {[%clk 0:02:58]} 4. Bg2 {[%clk 0:02:59]}  O-O {[%clk 0:02:58]} 5. O-O {[%clk 0:02:59]}  d6 {[%clk 0:02:50]} 6. c4 {[%clk 0:02:59]}  c6 {[%clk 0:02:49]} 7. Nc3 {[%clk 0:02:58]}  Qa5 {[%clk 0:02:49]} 8. Qc2 {[%clk 0:02:54]}  e5 {[%clk 0:02:47]} 9. e4 {[%clk 0:02:47]}  Nbd7 {[%clk 0:02:46]} 10. Rd1 {[%clk 0:02:47]}  exd4 {[%clk 0:02:45]} 11. Nxd4 {[%clk 0:02:46]}  Ne5 {[%clk 0:02:46]} 12. b3 {[%clk 0:02:44]}  a6 {[%clk 0:02:39]} 13. Bb2 {[%clk 0:02:44]}  Bg4 {[%clk 0:02:24]} 14. Nde2 {[%clk 0:02:27]}  Rad8 {[%clk 0:02:23]} 15. h3 {[%clk 0:02:26]}  Bf3 {[%clk 0:02:21]} 16. Bxf3 {[%clk 0:02:24]}  Nxf3+ {[%clk 0:02:20]} 17. Kg2 {[%clk 0:02:24]}  Ng5 {[%clk 0:02:14]} 18. h4 {[%clk 0:02:20]}  Ne6 {[%clk 0:02:15]} 19. a3 {[%clk 0:02:14]}  d5 {[%clk 0:02:09]} 20. b4 {[%clk 0:02:11]}  Qc7 {[%clk 0:02:08]} 21. exd5 {[%clk 0:02:06]}  cxd5 {[%clk 0:02:08]} 22. c5 {[%clk 0:02:06]}  d4 {[%clk 0:02:08]} 23. Nb1 {[%clk 0:01:59]}  Qc6+ {[%clk 0:02:06]} 24. Kg1 {[%clk 0:01:59]}  Ng4 {[%clk 0:02:01]} 25. Rd3 {[%clk 0:01:29]}  Ne5 {[%clk 0:01:54]} 26. Nd2 {[%clk 0:01:27]}  Nxd3 {[%clk 0:01:53]} 27. Qxd3 {[%clk 0:01:28]}  Rfe8 {[%clk 0:01:51]} 28. Nc4 {[%clk 0:01:21]}  Nc7 {[%clk 0:01:44]} 29. Nd6 {[%clk 0:01:17]}  Re7 {[%clk 0:01:42]} 30. Bxd4 {[%clk 0:01:12]}  Ne8 {[%clk 0:01:38]} 31. Bxg7 {[%clk 0:01:06]}  Nxg7 {[%clk 0:01:30]} 32. Nd4 {[%clk 0:01:00]}  Qd5 {[%clk 0:01:30]} 33. Qc3 {[%clk 0:00:58]}  Ne8 {[%clk 0:01:17]} 34. Nc2 {[%clk 0:00:38]}  Nxd6 {[%clk 0:01:14]} 35. cxd6 {[%clk 0:00:39]}  Rxd6 {[%clk 0:01:09]} 36. Ne3 {[%clk 0:00:39]}  Qd4 {[%clk 0:01:06]} 37. Qc8+ {[%clk 0:00:38]}  Kg7 {[%clk 0:01:06]} 38. Re1 {[%clk 0:00:36]}  Rde6 {[%clk 0:01:03]} 39. Rd1 {[%clk 0:00:31]}  Qe4 {[%clk 0:00:50]} 40. Nd5 {[%clk 0:00:19]}  Rd6 {[%clk 0:00:36]} 41. Qc5 {[%clk 0:00:13]}  Red7 {[%clk 0:00:31]} 42. Qc3+ {[%clk 0:00:13]}  f6 {[%clk 0:00:30]} 43. Re1 {[%clk 0:00:02]}  Qxd5 {[%clk 0:00:29]} 0-1


[Site "https://www.chess.com"]

[Event "Titled Tuesday Blitz July 25 Early 2023"]
[White "djokovic74"]
[Black "Kopczynski, Michal"]
[BlackFideId "1124200"]
[WhiteElo "2723"]
[BlackElo "2459"]
[Result "1-0"]
[Round "11"]
[TimeControl "180+2"]
[Date "2023.07.25"]
[WhiteClock "0:02:43"]
[BlackClock "0:02:08"]
[Board "77"]

1. e4 {[%clk 0:03:00]}  c5 {[%clk 0:02:59]} 2. Nf3 {[%clk 0:03:01]}  d6 {[%clk 0:03:00]} 3. d4 {[%clk 0:03:02]}  cxd4 {[%clk 0:03:01]} 4. Nxd4 {[%clk 0:03:03]}  Nf6 {[%clk 0:03:01]} 5. Nc3 {[%clk 0:03:03]}  g6 {[%clk 0:03:02]} 6. Be3 {[%clk 0:03:03]}  Bg7 {[%clk 0:03:03]} 7. f3 {[%clk 0:03:04]}  O-O {[%clk 0:03:03]} 8. Qd2 {[%clk 0:03:05]}  Nc6 {[%clk 0:03:04]} 9. O-O-O {[%clk 0:03:05]}  d5 {[%clk 0:03:04]} 10. Qe1 {[%clk 0:03:06]}  e6 {[%clk 0:03:03]} 11. Nxc6 {[%clk 0:03:07]}  bxc6 {[%clk 0:03:03]} 12. h4 {[%clk 0:03:07]}  Qa5 {[%clk 0:03:01]} 13. h5 {[%clk 0:03:06]}  dxe4 {[%clk 0:02:52]} 14. hxg6 {[%clk 0:03:02]}  hxg6 {[%clk 0:02:50]} 15. fxe4 {[%clk 0:02:46]}  e5 {[%clk 0:02:47]} 16. Qh4 {[%clk 0:02:44]}  Re8 {[%clk 0:02:35]} 17. Bg5 {[%clk 0:02:42]}  Ng4 {[%clk 0:02:28]} 18. Be2 {[%clk 0:02:43]}  f6 {[%clk 0:02:11]} 19. Bxg4 {[%clk 0:02:43]}  fxg5 {[%clk 0:02:08]} 20. Qh7+ {[%clk 0:02:43]} 1-0


[Site "https://www.chess.com"]

[Event "Titled Tuesday Blitz July 25 Early 2023"]
[White "Cheer_Down"]
[Black "Goltsev, Dmitry"]
[BlackFideId "24176710"]
[WhiteElo "2449"]
[BlackElo "2684"]
[Result "0-1"]
[Round "11"]
[TimeControl "180+2"]
[Date "2023.07.25"]
[WhiteClock "0:00:35"]
[BlackClock "0:02:11"]
[Board "80"]

1. e4 {[%clk 0:02:55]}  e6 {[%clk 0:03:00]} 2. d4 {[%clk 0:02:54]}  d5 {[%clk 0:03:01]} 3. Nc3 {[%clk 0:02:54]}  Nf6 {[%clk 0:03:01]} 4. e5 {[%clk 0:02:54]}  Ne4 {[%clk 0:03:01]} 5. Nxe4 {[%clk 0:02:52]}  dxe4 {[%clk 0:03:02]} 6. Bc4 {[%clk 0:02:52]}  c5 {[%clk 0:03:02]} 7. d5 {[%clk 0:02:51]}  exd5 {[%clk 0:03:02]} 8. Qxd5 {[%clk 0:02:49]}  Qxd5 {[%clk 0:02:59]} 9. Bxd5 {[%clk 0:02:49]}  Nc6 {[%clk 0:03:00]} 10. Bf4 {[%clk 0:02:44]}  Be6 {[%clk 0:02:58]} 11. Bxe4 {[%clk 0:02:41]}  O-O-O {[%clk 0:02:55]} 12. c3 {[%clk 0:02:30]}  h6 {[%clk 0:02:53]} 13. h4 {[%clk 0:02:28]}  Be7 {[%clk 0:02:50]} 14. Ne2 {[%clk 0:02:26]}  g5 {[%clk 0:02:50]} 15. Bg3 {[%clk 0:02:21]}  gxh4 {[%clk 0:02:49]} 16. Bxh4 {[%clk 0:02:18]}  Bxh4 {[%clk 0:02:49]} 17. Rxh4 {[%clk 0:02:15]}  Nxe5 {[%clk 0:02:48]} 18. Rh5 {[%clk 0:02:08]}  Ng4 {[%clk 0:02:38]} 19. Rxc5+ {[%clk 0:02:06]}  Kb8 {[%clk 0:02:38]} 20. f3 {[%clk 0:01:42]}  Ne3 {[%clk 0:02:32]} 21. Kf2 {[%clk 0:01:41]}  Nd1+ {[%clk 0:02:31]} 22. Ke1 {[%clk 0:01:35]}  Ne3 {[%clk 0:02:31]} 23. Kf2 {[%clk 0:01:33]}  Nd1+ {[%clk 0:02:30]} 24. Ke1 {[%clk 0:01:32]}  Nxb2 {[%clk 0:02:23]} 25. Rb5 {[%clk 0:01:28]}  Nd3+ {[%clk 0:02:23]} 26. Kf1 {[%clk 0:01:22]}  b6 {[%clk 0:02:20]} 27. Nd4 {[%clk 0:00:55]}  Bc4 {[%clk 0:02:17]} 28. Nc6+ {[%clk 0:00:49]}  Kc7 {[%clk 0:02:17]} 29. Rf5 {[%clk 0:00:44]}  Ne5+ {[%clk 0:02:13]} 30. Kf2 {[%clk 0:00:35]}  Nxc6 {[%clk 0:02:11]} 0-1


[Site "https://www.chess.com"]

[Event "Titled Tuesday Blitz July 25 Early 2023"]
[White "Nurgaliyeva, Zarina"]
[Black "Reprintsev, Alexander"]
[WhiteFideId "13730096"]
[BlackFideId "14100541"]
[WhiteElo "2578"]
[BlackElo "2442"]
[Result "1-0"]
[Round "11"]
[TimeControl "180+2"]
[Date "2023.07.25"]
[WhiteClock "0:01:24"]
[BlackClock "0:00:50"]
[Board "83"]

1. e4 {[%clk 0:03:00]}  d5 {[%clk 0:02:55]} 2. exd5 {[%clk 0:02:59]}  Qxd5 {[%clk 0:02:54]} 3. Nc3 {[%clk 0:02:58]}  Qa5 {[%clk 0:02:53]} 4. Bc4 {[%clk 0:02:57]}  Nf6 {[%clk 0:02:53]} 5. d3 {[%clk 0:02:57]}  e5 {[%clk 0:02:50]} 6. Bd2 {[%clk 0:02:47]}  c6 {[%clk 0:02:50]} 7. Qe2 {[%clk 0:02:38]}  Nbd7 {[%clk 0:02:33]} 8. Nf3 {[%clk 0:02:20]}  Qc7 {[%clk 0:02:29]} 9. Ng5 {[%clk 0:02:17]}  Bb4 {[%clk 0:02:19]} 10. Bxf7+ {[%clk 0:02:13]}  Ke7 {[%clk 0:02:16]} 11. Bb3 {[%clk 0:02:08]}  h6 {[%clk 0:02:16]} 12. Ne6 {[%clk 0:02:06]}  Qd6 {[%clk 0:02:13]} 13. Nxg7 {[%clk 0:02:07]}  Nc5 {[%clk 0:02:02]} 14. O-O {[%clk 0:01:58]}  Nxb3 {[%clk 0:02:01]} 15. axb3 {[%clk 0:01:56]}  Rg8 {[%clk 0:02:01]} 16. f4 {[%clk 0:01:44]}  e4 {[%clk 0:01:17]} 17. Nxe4 {[%clk 0:01:34]}  Bg4 {[%clk 0:00:53]} 18. Nxd6+ {[%clk 0:01:26]}  Bxe2 {[%clk 0:00:50]} 19. Ngf5+ {[%clk 0:01:24]} 1-0


[Site "https://www.chess.com"]

[Event "Titled Tuesday Blitz July 25 Early 2023"]
[White "Orlov, Georgi"]
[Black "Bendayan Claros, Aaron"]
[WhiteFideId "2011271"]
[BlackFideId "3803392"]
[WhiteElo "2553"]
[BlackElo "2440"]
[Result "1-0"]
[Round "11"]
[TimeControl "180+2"]
[Date "2023.07.25"]
[WhiteClock "0:02:02"]
[BlackClock "0:01:26"]
[Board "85"]

1. d4 {[%clk 0:02:55]}  d5 {[%clk 0:02:59]} 2. Nf3 {[%clk 0:02:54]}  Nf6 {[%clk 0:02:59]} 3. c4 {[%clk 0:02:53]}  e6 {[%clk 0:02:57]} 4. Nc3 {[%clk 0:02:53]}  a6 {[%clk 0:02:53]} 5. cxd5 {[%clk 0:02:46]}  exd5 {[%clk 0:02:53]} 6. g3 {[%clk 0:02:46]}  Be6 {[%clk 0:02:53]} 7. Qb3 {[%clk 0:02:45]}  Ra7 {[%clk 0:02:45]} 8. Bg2 {[%clk 0:02:45]}  Bd6 {[%clk 0:02:44]} 9. O-O {[%clk 0:02:44]}  c6 {[%clk 0:02:44]} 10. Bg5 {[%clk 0:02:33]}  Nbd7 {[%clk 0:02:43]} 11. Qc2 {[%clk 0:02:28]}  h6 {[%clk 0:02:43]} 12. Bf4 {[%clk 0:02:23]}  Qc7 {[%clk 0:02:40]} 13. e3 {[%clk 0:02:21]}  O-O {[%clk 0:02:39]} 14. Rac1 {[%clk 0:02:21]}  Raa8 {[%clk 0:02:36]} 15. b4 {[%clk 0:02:20]}  Bxf4 {[%clk 0:02:34]} 16. exf4 {[%clk 0:02:18]}  Qd6 {[%clk 0:02:34]} 17. Qb2 {[%clk 0:02:13]}  Bf5 {[%clk 0:02:28]} 18. Ne5 {[%clk 0:02:12]}  Rfe8 {[%clk 0:02:23]} 19. a4 {[%clk 0:02:12]}  a5 {[%clk 0:01:45]} 20. b5 {[%clk 0:02:11]}  c5 {[%clk 0:01:45]} 21. Nxd7 {[%clk 0:02:04]}  Bxd7 {[%clk 0:01:32]} 22. dxc5 {[%clk 0:02:03]}  Qxc5 {[%clk 0:01:26]} 23. Nxd5 {[%clk 0:02:02]} 1-0


[Site "https://www.chess.com"]